[Event "The Kvibergspelen 2023"]
[Site "Kviberg Park Hotel & Conference, Krutvagen 2, Gothenburg, Sweden"]
[Date "2023.09.17"]
[Round "8.20"]
[White "Dingertz, Erik"]
[Black "Morell, Ludvig"]
[Result "1-0"]
[TimeControl "15 minutes + 5 seconds per move from move one (Round 1 - 4) / 90 minutes + 30 seconds per move from move one (Round 5 - 8)"]
[WhiteFideId "1741578"]
[BlackFideId "1736779"]
[WhiteElo "2140"]
[BlackElo "2001"]

1. d4 {[%clk 01:30:59]} d5 {[%clk 01:30:04]} {[%emt 00:00:56]} 2. c4 {[%clk
01:31:13]} {[%emt 00:00:16]} e6 {[%clk 01:30:30]} {[%emt 00:00:04]} 3. Nf3
{[%clk 01:31:38]} {[%emt 00:00:05]} Nf6 {[%clk 01:30:56]} {[%emt 00:00:05]} 4.
g3 {[%clk 01:32:05]} {[%emt 00:00:04]} Be7 {[%clk 01:31:21]} {[%emt 00:00:04]}
5. Bg2 {[%clk 01:32:31]} {[%emt 00:00:04]} O-O {[%clk 01:31:46]} {[%emt
00:00:06]} 6. O-O {[%clk 01:32:59]} {[%emt 00:00:02]} dxc4 {[%clk 01:32:11]}
{[%emt 00:00:05]} 7. Qc2 {[%clk 01:33:20]} {[%emt 00:00:08]} a6 {[%clk
01:32:20]} {[%emt 00:00:22]} 8. Qxc4 {[%clk 01:33:22]} {[%emt 00:00:27]} b5
{[%clk 01:32:45]} {[%emt 00:00:05]} 9. Qc2 {[%clk 01:33:49]} {[%emt 00:00:03]}
Bb7 {[%clk 01:32:46]} {[%emt 00:00:30]} 10. Bd2 {[%clk 01:33:12]} {[%emt
00:01:06]} Qc8 {[%clk 01:31:44]} {[%emt 00:01:32]} 11. Rc1 {[%clk 01:31:04]}
{[%emt 00:02:38]} Bd6 {[%clk 01:29:41]} {[%emt 00:02:33]} 12. Bg5 {[%clk
01:23:26]} {[%emt 00:08:08]} Be4 {[%clk 01:23:48]} {[%emt 00:06:24]} 13. Qd1
{[%clk 01:23:47]} {[%emt 00:00:09]} Nbd7 {[%clk 01:22:44]} {[%emt 00:01:31]} 14.
Nbd2 {[%clk 01:24:03]} {[%emt 00:00:16]} Bb7 {[%clk 01:22:27]} {[%emt
00:00:47]} 15. Bxf6 {[%clk 01:22:07]} {[%emt 00:02:27]} Nxf6 {[%clk 01:21:24]}
{[%emt 00:01:32]} 16. Nb3 {[%clk 01:22:31]} {[%emt 00:00:07]} Bd5 {[%clk
01:01:57]} {[%emt 00:19:56]} 17. a3 {[%clk 01:18:27]} {[%emt 00:04:34]} a5
{[%clk 00:53:12]} {[%emt 00:09:16]} 18. Nc5 {[%clk 01:16:54]} {[%emt 00:02:02]}
Bxc5 {[%clk 00:49:28]} {[%emt 00:04:14]} 19. Rxc5 {[%clk 01:15:53]} {[%emt
00:01:31]} Nd7 {[%clk 00:48:13]} {[%emt 00:01:44]} 20. Rc3 {[%clk 01:11:12]}
{[%emt 00:05:12]} Qb7 {[%clk 00:38:31]} {[%emt 00:10:12]} 21. Qc2 {[%clk
01:08:07]} {[%emt 00:03:36]} Ra7 {[%clk 00:35:36]} {[%emt 00:03:24]} 22. Ng5
{[%clk 01:06:51]} {[%emt 00:01:47]} f5 {[%clk 00:35:47]} {[%emt 00:00:18]} 23.
Bxd5 {[%clk 01:05:18]} {[%emt 00:02:03]} Qxd5 {[%clk 00:33:40]} {[%emt
00:02:37]} 24. Rxc7 {[%clk 00:55:55]} {[%emt 00:09:53]} Rxc7 {[%clk 00:34:05]}
{[%emt 00:00:05]} 25. Qxc7 {[%clk 00:56:18]} {[%emt 00:00:06]} h6 {[%clk
00:28:42]} {[%emt 00:05:54]} 26. Nf3 {[%clk 00:56:43]} {[%emt 00:00:06]} g5
{[%clk 00:28:49]} {[%emt 00:00:23]} 27. Rc1 {[%clk 00:55:19]} {[%emt 00:01:53]}
f4 {[%clk 00:26:43]} {[%emt 00:02:36]} 28. g4 {[%clk 00:49:56]} {[%emt
00:05:53]} h5 {[%clk 00:17:27]} {[%emt 00:09:46]} 29. h3 {[%clk 00:49:41]}
{[%emt 00:00:45]} hxg4 {[%clk 00:16:58]} {[%emt 00:00:57]} 30. hxg4 {[%clk
00:50:05]} {[%emt 00:00:08]} Rf7 {[%clk 00:14:54]} {[%emt 00:02:31]} 31. Qd8+
{[%clk 00:49:55]} {[%emt 00:00:43]} 1-0